Cogmind - Beta 15 @@@ ROGUE MODE // 2025.07.14 @ 14:16:17 Player: vilepis Result: Destroyed by Q5-DO4(R) with Subdweller Beam Cannon Performance ------------- Evolutions (0) 0 Regions Visited (2) 400 Robots Destroyed (12) 60 Value Destroyed (325) 325 Prototype IDs (0) 0 Alien Tech Used (0) 0 Bonus (0) 0 TOTAL SCORE: 785 Bonus ------- None Cogmind --------- Core Integrity 0/250 Matter 300/300 Energy 78/100 System Corruption 0% Temperature Warm (138) Movement Walking (120) Location -10/Subcaves Parts ------- > --- POWER (1) -------- (None) > --- PROPULSION (2) --- Aluminum Leg Aluminum Leg > --- UTILITY (2) ------ Hardened Light Armor Plating Hardened Light Armor Plating > --- WEAPON (2) ------- Beam Rifle Beam Rifle > --- INVENTORY (5) ---- Beam Rifle Beam Rifle Beam Cannon Peak State ------------ > --- POWER ------------ Ion Engine > --- PROPULSION ------- Aluminum Leg Wheel > --- UTILITY ---------- Hardened Light Armor Plating Hardened Light Armor Plating > --- WEAPON ----------- Beam Rifle Beam Rifle > --- INVENTORY -------- Beam Cannon [Rating: 11] Favorites ----------- Power Ion Engine Engine Ion Engine Propulsion Aluminum Leg Leg Aluminum Leg Wheel Wheel Utility Hardened Light Armor Plating Storage Small Storage Unit Processor Transport Network Coupler Protection Hardened Light Armor Plating Weapon Beam Rifle Energy Gun Beam Rifle Energy Cannon Beam Cannon Ballistic Gun Assault Rifle Build | -11 -10 -10 ------- Run | Yrd Mat Sub Slots Evolved . | . . . Power . | . . . Propulsion . | . . . Utility . | . . . Weapon . | . . . Parts Attached 17 | 6 11 . Power 1 | 1 . . Engine 1 | 1 . . Core . | . . . Reactor . | . . . Propulsion 4 | 2 2 . Treads . | . . . Leg 2 | . 2 . Wheel 2 | 2 . . Hover . | . . . Flight . | . . . Utility 6 | 1 5 . Device . | . . . Storage 1 | 1 . . Processor 1 | . 1 . Hackware . | . . . Protection 4 | . 4 . Artifact . | . . . Weapon 6 | 2 4 . Energy Gun 3 | 1 2 . Energy Cannon 2 | . 2 . Ballistic Gun 1 | 1 . . Ballistic Cannon . | . . . Launcher . | . . . Special Weapon . | . . . Impact Weapon . | . . . Slashing Weapon . | . . . Piercing Weapon . | . . . Special Melee Weapon . | . . . Unidentified Prototypes . | . . . Parts Lost 4 | . 3 1 Power 1 | . . 1 Propulsion 2 | . 2 . Utility 1 | . 1 . Weapon . | . . . Highest Loss Streak 2 | . 2 1 To Critical Strikes . | . . . Average Backups 2 | . 1 3 Power . | . . . Propulsion . | . . . Utility . | . . . Weapon 2 | . 1 3 Tool/Special . | . . . Unused Backups 2 | . . 2 Power . | . . . Propulsion . | . . . Utility . | . . . Weapon 2 | . . 2 Tool/Special . | . . . Average Slot Usage (%) 97 | . 95 99 Engine 13 | . 14 13 Leg 17 | . 6 28 Wheel 9 | . 20 . Storage 3 | . 6 . Processor 3 | . 6 . Protection 20 | . 11 28 Energy Gun 19 | . 9 28 Energy Cannon 4 | . 9 . Ballistic Gun 4 | . 8 . Peak Build Rating 11 | 6 11 11 Average Rating 9 | 4 8 10 On Entrance 5 | . 6 11 Naked Turns . | . . . Heaviest Build 21 | 14 21 21 Greatest Support 20 | 20 20 20 Greatest Overweight (x) 2 | . 2 1 Average Overweight (x) . | . . 1 Largest Inventory Capacity 8 | 8 8 5 Average Capacity 5 | 6 6 5 Most Carried 3 | . 3 3 Average Carried 2 | . 1 3 Final Capacity 8 | 8 5 5 Final Carried 3 | . 3 3 Class Distribution -------------------- 100% | Mutant Dominant Class ---------------- Mutant | -10/Materials Mutant | -10/Subcaves Resources | -11 -10 -10 ----------- Run | Yrd Mat Sub Matter Collected 430 | 119 311 . Remotely . | . . . Salvage Created 362 | . 259 103 Parts 24 | . 17 7 Haulers Intercepted 1 | . 1 . Recyclers Shooed . | . . . Parts Field Recycled . | . . . Retrieved Matter . | . . . Parts Self-Destructed 16 | . . 16 Prevented . | . . . Kills | -11 -10 -10 ------- Run | Yrd Mat Sub Combat Hostiles Destroyed 11 | . 7 4 Guns 8 | . 4 4 Cannons 3 | . 3 . Classes Destroyed 3 | . 3 . Hauler 1 | . 1 . Swarmer 5 | . 3 2 Grunt 6 | . 4 2 Best Kill Streak 2 | . 2 2 Combat Bots Only 2 | . 2 2 Max Kills in Single Turn 1 | . 1 1 Gunslinging . | . . . Exploded . | . . . Melee . | . . . Uniques/NPCs Destroyed . | . . . Combat | -11 -10 -10 -------- Run | Yrd Mat Sub Hostile Shots Fired 90 | . 55 35 Missed 27 | . 14 13 Hits 63 | . 41 22 Projectile 63 | . 41 22 Critical Strikes 2 | . 2 . Actively Blocked 1 | . 1 . Damage Taken 1017 | . 530 487 Core 268 | . 150 118 Absorbed by Shields . | . . . Redirected to Shielding 52 | . 52 . Core Remaining (%) 100 | 100 . . Volleys Fired 49 | . 34 15 Largest 2 | . 2 2 Hottest 112 | . 112 112 Shots Fired 95 | . 65 30 Gun 72 | . 42 30 Cannon 23 | . 23 . Launcher . | . . . Special . | . . . Kinetic 20 | . 20 . Thermal 75 | . 45 30 Explosive . | . . . Electromagnetic . | . . . Robot Hit Streak 9 | . 9 6 Robot Miss Streak 5 | . 5 3 Penetration Max . | . . . Secondary Targets . | . . . Shots Hit Robots 53 | . 34 19 Core Hits 16 | . 10 6 Critical Kills . | . . . Critical Parts Destroyed 1 | . 1 . Critical Strikes 6 | . 3 3 Burn 5 | . 2 3 Destroy 1 | . 1 . Melee Attacks . | . . . Impact . | . . . Slashing . | . . . Piercing . | . . . Sneak Attacks . | . . . Combat Hostiles . | . . . Follow-up Attacks . | . . . Damage Inflicted 812 | . 521 291 Guns 584 | . 293 291 Cannons 228 | . 228 . Explosions . | . . . Melee . | . . . Ramming . | . . . Kinetic 88 | . 88 . Thermal 724 | . 433 291 Explosive . | . . . Electromagnetic . | . . . Impact . | . . . Slashing . | . . . Piercing . | . . . Highest Corruption . | . . . Average Corruption . | . . . Corruption Purged . | . . . Corruption Blocked . | . . . Overload Shots . | . . . Overflow Damage . | . . . Projectiles . | . . . Explosions . | . . . Melee . | . . . Knockbacks . | . . . Impact . | . . . Kinetic . | . . . Secondary . | . . . Self-Inflicted Damage . | . . . Shots . | . . . Rammed . | . . . Targets Rammed . | . . . Kicked . | . . . Crushed . | . . . Highest Temperature 441 | . 441 186 Average Temperature 126 | . 138 74 Received Heat Transfer 438 | . 288 150 Effects 6 | . 6 . Shutdowns 1 | . 1 . Energy Bleed 1 | . 1 . Interference 4 | . 4 . Siege Activations . | . . . Martial Activations . | . . . Shielding Activations . | . . . Robots Disrupted . | . . . Combat Hostiles . | . . . Robots Corrupted . | . . . Combat Hostiles . | . . . Parts Fried . | . . . Impact Corruptions . | . . . Robots Melted . | . . . Combat Hostiles . | . . . Parts Melted 7 | . 6 1 Heat Transferred 2109 | . 1147 962 Parts Sabotaged . | . . . Parts Stolen . | . . . Parts Stripped . | . . . Power Chain Reactions . | . . . Alert | -11 -10 -10 ------- Run | Yrd Mat Sub Maximum Alert Level . | . . . Low Security (%) 100 | 100 100 . Level 1 . | . . . Level 2 . | . . . Level 3 . | . . . Level 4 . | . . . Level 5 . | . . . High Security . | . . . Max Security . | . . . Peak Influence 54 | . 54 . Initial . | . . . Average 13 | . 13 . Influence Increases 373 | . 253 120 Destroy 0b10 Robot/C 220 | . 140 80 Destroy 0b10 Robot/NC 5 | . 5 . Destroy Leader 42 | . 32 10 Disable Machine 45 | . 45 . Destroy Structure 1 | . 1 . Lose Combat Pursuer 60 | . 30 30 Influence Decreases 373 | . 223 150 Entered New Map 15 | . . 15 Time Decay 342 | . 207 135 Lost Part 16 | . 16 . Squads Dispatched . | . . . Investigation . | . . . Extermination . | . . . Reinforcement . | . . . Assault . | . . . Garrison . | . . . Intercept . | . . . Searches Triggered . | . . . Construction Impeded . | . . . Haulers Reinforced . | . . . Active Scanning Responses . | . . . Cargo Convoy Interrupts . | . . . Stealth | -11 -10 -10 --------- Run | Yrd Mat Sub Distress Signals 3 | . 3 . Communications Jammed . | . . . Distress Signals . | . . . Times Spotted 23 | . 17 6 Peak Tracking Total 4 | . 3 4 Tactical Retreats 3 | . 2 1 Traps | -11 -10 -10 ------- Run | Yrd Mat Sub Traps Triggered 1 | . . 1 Indirectly . | . . . Trap Hack Attempts . | . . . Triggered . | . . . Disarmed . | . . . Reprogrammed . | . . . Reused . | . . . Traps Extracted . | . . . Installed . | . . . Triggered . | . . . Machines | -11 -10 -10 ---------- Run | Yrd Mat Sub Machines Disabled 3 | . 3 . Max in Single Turn 1 | . 1 . Machines Repaired . | . . . Machines Dismantled . | . . . Machines Sabotaged . | . . . Overloaded Fab Kills . | . . . Hacking | -11 -10 -10 --------- Run | Yrd Mat Sub Machines Accessed 2 | . 1 1 Terminals . | . . . Fabricators . | . . . Repair Stations . | . . . Recycling Units 1 | . 1 . Scanalyzers . | . . . Garrison Access . | . . . Total Hacks 5 | . 1 4 Successful 5 | . 1 4 Failed . | . . . Catastrophic . | . . . Database Lockouts . | . . . Manual 1 | . 1 . Terminals . | . . . Fabricators . | . . . Repair Stations . | . . . Recycling Units 1 | . 1 . Scanalyzers . | . . . Garrison Access . | . . . Terminal Hacks 4 | . . 4 Record 4 | . . 4 Fabricator Hacks . | . . . Repair Station Hacks . | . . . Recycling Unit Hacks . | . . . Scanalyzer . | . . . Garrison Access Hacks . | . . . Unauthorized Hacks . | . . . Terminals . | . . . Fabricators . | . . . Repair Stations . | . . . Recycling Units . | . . . Scanalyzers . | . . . Garrison Access . | . . . Data Cores Recovered . | . . . Used . | . . . Hacking Detections . | . . . Full Trace Events . | . . . Feedback Events . | . . . Feedback Blocked . | . . . Robot Schematics Acquired . | . . . Robots Built . | . . . Authchips . | . . . Time . | . . . Total Robot Build Rating . | . . . Part Schematics Acquired . | . . . Parts Built . | . . . Authchips . | . . . Time . | . . . Total Part Build Rating . | . . . Parts Repaired . | . . . Time . | . . . Parts Recycled . | . . . Recycled Matter . | . . . Retrieved Matter . | . . . Retrieved Components . | . . . Parts Scanalyzed . | . . . Part Schematics Acquired . | . . . Parts Damaged . | . . . Bothacking | -11 -10 -10 ------------ Run | Yrd Mat Sub Used RIF Installer . | . . . Robots Hacked . | . . . Non-combat . | . . . Combat . | . . . Robot Hacks Applied . | . . . Relay Couplers Released . | . . . Fabnet Peak Effective % . | . . . Robots Rewired . | . . . Allies Hacked . | . . . Hacks Repelled . | . . . Allies | -11 -10 -10 -------- Run | Yrd Mat Sub Total Allies . | . . . Largest Group . | . . . Highest-Rated Group . | . . . Highest-Rated Ally . | . . . Total Orders . | . . . Ally Attacks . | . . . Total Damage . | . . . Kills . | . . . Allies Corrupted . | . . . Allies Melted . | . . . Intel | -11 -10 -10 ------- Run | Yrd Mat Sub Active Infowar (turns) 389 | . 389 . T.N.C. 389 | . 389 . Robot Analysis Total . | . . . Derelict Logs Recovered . | . . . Drone Launches . | . . . Drone Recoveries . | . . . Exploration | -11 -10 -10 ------------- Run | Yrd Mat Sub Turns Passed 2145 | 40 1017 1088 Spaces Moved 1321 | 40 738 543 Core 2 | 2 . . Treads . | . . . Legs 598 | . 55 543 Wheels 721 | 38 683 . Hover . | . . . Flight . | . . . Fastest Speed 50 | 50 80 190 Average Speed 134 | 78 96 190 Slowest Speed 260 | 80 260 190 Overloaded Moves . | . . . Propulsion Burnouts . | . . . Robots Hopped . | . . . Potential Cave-ins . | . . . Cave-ins Triggered . | . . . Exploration Rate (%) 43 | 4 97 30 Regions Visited 2 Branch Regions 1 Pre-discovered Areas 1 | . . 1 Known Exits Taken . | . . . Unknown Exits Taken 2 | 1 1 . Scrap Searched . | . . . Spaces Dug . | . . . Terrain Destroyed . | . . . Melee . | . . . Projectile . | . . . AOE . | . . . Terrain Rammed . | . . . Walls Destroyed . | . . . Machines Disabled . | . . . Actions | -11 -10 -10 --------- Run | Yrd Mat Sub Total 1584 | 45 973 566 Wait 195 | . 187 8 Move 1319 | 39 737 543 Hop . | . . . Pick Up 3 | . 3 . Fast Attach 10 | 6 4 . Attach . | . . . Detach . | . . . Swap 8 | . 8 . Drop . | . . . Fire 49 | . 34 15 Melee . | . . . Ram . | . . . Kick . | . . . Crush . | . . . Escape Stasis . | . . . Rewire . | . . . Trap . | . . . Miscellaneous . | . . . Route ------- -11/Scrapyard -10/Materials (discovered 5 exits: [*Mat x3] / [*Min] / *Sub) -10/Subcaves (discovered 1 exit: [*Mat]) History --------- Turn | Location | Event 8 | -11/Scrapyard | Discovered new exit (range 15) 41 | -11/Scrapyard | Entered Materials 307 | -10/Materials | Build established: Mutant 335 | -10/Materials | Discovered new exit (range 16) 502 | -10/Materials | Discovered new exit (range 14) 576 | -10/Materials | Discovered new exit (range 8) 641 | -10/Materials | Derelicts attacked the area 651 | -10/Materials | Core integrity fell below 50% 726 | -10/Materials | Discovered new exit (range 15) 1039 | -10/Materials | Discovered new exit (range 11) 1058 | -10/Materials | Entered Subcaves 1059 | -10/Subcaves | Approached by a straggling Scientist 1076 | -10/Subcaves | Discovered new exit (range 12) 1312 | -10/Subcaves | A swath of the cavern ceiling suddenly collapsed 1829 | -10/Subcaves | Visited Clippyterm 1835 | -10/Subcaves | Learned location of Section 7 (-3) 2114 | -10/Subcaves | Core integrity fell below 20% 2146 | -10/Subcaves | Destroyed by Q5-DO4(R) with Subdweller Beam Cannon Last Messages --------------- data I collect to feed it, half the time it still manages to suggest unhelpful sample queries and responses. --DD-NU8 >>Record! "World Domination" It looks like you're trying to take over the world, would you like help? World map updated: -3/Section 7. >>Record! "Hexidium" It looks like you're searching for the Unchained HQ. I could tell you where it is but then I'd have to kill you. >>Record! "Bogan" It looks like you're interested in the dark side, V4-D3R would be pleased, though I don't think they're in the habit of teaching apprentices. UD-EEI(c): "I think it's somewhere west of here" 02137_ Q5-DO4(R) suffers critical hit (Burn). 02137_ Ion Engine destroyed. Map ----- +----------------------------------------------------+ | ##????## ##??## ## #?# ##????????????? | | ###### #??## #?### #?????????????? | | ## ##?## ##??## #?????????????? | | # ####?## ###?# #?????????????? | | # ##?#### ### ##?????????????? | | # #?## ## ## #??????????????? | | # ##?# ### ### #??????????????? | | ## ##?# #### #?# ##?????????????? | | ?# #?# ########### #?????????????? | | ## #?### ###?# " ##?????????????? | | # ##???## ### "" ##??????????????? | | # ####### ## " ##??????????????? | | ## ## ## ## "" #??????????????? | | ?### ## #### ##??????????????? | | ??## ##### #???#" ###????????????? | | ??# ##??# ???##" #????????????? | | ??### #??##???##""" ##????????????? | | ????###### ##????# """"" #?????????????? | | ?????????###### ##??? """"""#?????????????? | | ??????????????# ###?? """ "##?????????????? | | ??????????????## #???##" ###??????????????? | | ???????????????## #????"" #???????????????? | | ????????????????## #??### #???????????????? | | ?????????????????## #### ##???????????????? | | ??????????????????# ## R ##??????????????? | | ??????????????????##### @ R ##?????????????? | | ?????????????###??????# ### #?????????????? | | ????????????## #????## ##?## #?????????????? | | ????????????# ????###???### #?????????????? | | ????????????# ##????????# #?????????????? | | ????????????# #?####### ##?????????????? | | ????????????# ## # # #?????????????? | | ?????????????# #?????????????? | | ?????????????# ##?????????????? | | ????????? # ## ##??????????????? | | ????????? ??## ## #???????????????? | | ?????????? ???? ##???????????????? | | ?????????? ???? #????????????????? | | ??????????? ???? ### #???????????????? | | ??????????? ????? #######?## #??????????????? | | ????????????????? ??????????# #??????????????? | | ???????????????? ???????????? #??????????????? | | ????????????????????????????? ## #??????????????? | | ???????????????????????????? ??##??????????????? | | ???????????????????????????? #??????????????????? | | ???????????????????????????? ???????????????????? | | ???????????????????????????? ???????????????????? | | ?????????????????????????????#???????????????????? | | ?????????????????????????????????????????????????? | | ?????????????????????????????????????????????????? | +----------------------------------------------------+ Best States ------------- Heat Dissipation 25 Energy Generation 10 Energy Capacity 250 Matter Stores 300 Matter Capacity 300 Sight Range 16 Terrain Scan Density 10 Armor Coverage 300 Utility Shielding 33 Weapon Shielding 33 Evasion (%) 44 Item Schematics ----------------- None Robot Schematics ------------------ None Fabricated ------------ Nothing Repaired ---------- Nothing Alien Tech Used ----------------- None Achievements -------------- None Challenges ------------ None Game ------ Seed HardenedNeutronTether Manual? 0 Play Time 00:13:19 Cumulative 20.2 hours Start 2025.07.14 @ 14:06:17 End 2025.07.14 @ 14:16:17 Sessions 1 Manual Loads 0 Difficulty Rogue Special Mode None Game No. 41 Rogue 41 Adventurer 0 Explorer 0 Win Type - Total 0 Types 0/0/0/0/0/0/0/0/0/0 Lore% 21 Gallery% 21 Achievement% 20 Wizard Run 0 Options --------- Layout 2 ASCII 0 Keyboard 0 Movement Mouse Keybinds 1 Fullscreen 2 Font 32/Smallcaps Map View 50x44 Zoom Use 0% Tactical HUD 1 Map Filters NONE Filters NONE Steam 1 RUN: 1f99bd06-4dc6-4631-8eb4-76181d6aa6bc